[Event "Titled Tuesday Blitz April 19 Late 2022"]
[White "Tanenbaum, Zachary"]
[Black "Zor, Alber Kadir"]
[WhiteFideId "2060850"]
[BlackFideId "6353169"]
[WhiteElo "2168"]
[BlackElo "1966"]
[Result "0-1"]
[Round "01"]
[TimeControl "180+1"]
[Date "2022.04.19"]
[WhiteClock "0:00:11"]
[BlackClock "0:00:34"]

1. e4 {[%clk 0:02:37]}  c5 {[%clk 0:02:59]} 2. Nf3 {[%clk 0:02:38]}  d6 {[%clk 0:02:58]} 3. d4 {[%clk 0:02:38]}  cxd4 {[%clk 0:02:58]} 4. Nxd4 {[%clk 0:02:39]}  Nf6 {[%clk 0:02:58]} 5. Nc3 {[%clk 0:02:39]}  Nc6 {[%clk 0:02:59]} 6. Bg5 {[%clk 0:02:39]}  e6 {[%clk 0:02:58]} 7. Bb5 {[%clk 0:02:39]}  Bd7 {[%clk 0:02:53]} 8. Qd3 {[%clk 0:02:39]}  Nxd4 {[%clk 0:02:44]} 9. Bxd7+ {[%clk 0:02:37]}  Qxd7 {[%clk 0:02:42]} 10. Qxd4 {[%clk 0:02:37]}  Be7 {[%clk 0:02:40]} 11. O-O-O {[%clk 0:02:35]}  a6 {[%clk 0:02:27]} 12. f4 {[%clk 0:01:33]}  h6 {[%clk 0:02:17]} 13. Bh4 {[%clk 0:01:23]}  O-O-O {[%clk 0:02:01]} 14. Qa7 {[%clk 0:00:26]}  Ng8 {[%clk 0:01:48]} 15. Na4 {[%clk 0:00:22]}  Qxa4 {[%clk 0:01:42]} 16. Bf2 {[%clk 0:00:21]}  Nf6 {[%clk 0:01:26]} 17. Bb6 {[%clk 0:00:19]}  Qc6 {[%clk 0:01:26]} 18. Rd4 {[%clk 0:00:15]}  Kd7 {[%clk 0:01:21]} 19. Bxd8 {[%clk 0:00:07]}  Rxd8 {[%clk 0:01:19]} 20. Rhd1 {[%clk 0:00:07]}  Ke8 {[%clk 0:01:17]} 21. e5 {[%clk 0:00:07]}  Nd5 {[%clk 0:01:13]} 22. exd6 {[%clk 0:00:07]}  Bxd6 {[%clk 0:01:12]} 23. c4 {[%clk 0:00:05]}  Bc5 {[%clk 0:00:54]} 24. cxd5 {[%clk 0:00:05]}  exd5 {[%clk 0:00:38]} 25. Rc4 {[%clk 0:00:04]}  Bxa7 {[%clk 0:00:33]} 26. Rxc6 {[%clk 0:00:05]}  bxc6 {[%clk 0:00:34]} 27. b3 {[%clk 0:00:05]}  Kd7 {[%clk 0:00:34]} 28. Kb2 {[%clk 0:00:05]}  Kd6 {[%clk 0:00:34]} 29. Rd2 {[%clk 0:00:05]}  Re8 {[%clk 0:00:34]} 30. Rc2 {[%clk 0:00:06]}  Re4 {[%clk 0:00:33]} 31. g3 {[%clk 0:00:06]}  g5 {[%clk 0:00:32]} 32. fxg5 {[%clk 0:00:07]}  hxg5 {[%clk 0:00:33]} 33. Ka3 {[%clk 0:00:07]}  f5 {[%clk 0:00:33]} 34. Kb2 {[%clk 0:00:08]}  f4 {[%clk 0:00:33]} 35. gxf4 {[%clk 0:00:09]}  gxf4 {[%clk 0:00:33]} 36. h4 {[%clk 0:00:10]}  f3 {[%clk 0:00:34]} 37. h5 {[%clk 0:00:10]}  f2 {[%clk 0:00:34]} 38. Rc1 {[%clk 0:00:11]}  Re1 {[%clk 0:00:34]} 39. Rxc6+ {[%clk 0:00:11]}  Kxc6 {[%clk 0:00:34]} 0-1


[Site "https://www.chess.com"]

[Event "Titled Tuesday Blitz April 19 Late 2022"]
[White "Tregubov, Pavel V."]
[Black "Gatterer, Florian"]
[WhiteFideId "4115341"]
[BlackFideId "811688"]
[WhiteElo "2341"]
[BlackElo "2218"]
[Result "1-0"]
[Round "01"]
[TimeControl "180+1"]
[Date "2022.04.19"]
[WhiteClock "0:00:23"]
[BlackClock "0:00:12"]

1. e4 {[%clk 0:03:00]}  c5 {[%clk 0:02:54]} 2. Nf3 {[%clk 0:03:00]}  e6 {[%clk 0:02:53]} 3. c3 {[%clk 0:03:00]}  Nf6 {[%clk 0:02:51]} 4. e5 {[%clk 0:03:00]}  Nd5 {[%clk 0:02:52]} 5. d4 {[%clk 0:03:00]}  cxd4 {[%clk 0:02:50]} 6. cxd4 {[%clk 0:03:01]}  d6 {[%clk 0:02:50]} 7. Bc4 {[%clk 0:03:00]}  Bd7 {[%clk 0:02:44]} 8. O-O {[%clk 0:02:55]}  Be7 {[%clk 0:02:36]} 9. Qe2 {[%clk 0:02:53]}  Bc6 {[%clk 0:02:31]} 10. Bd2 {[%clk 0:02:44]}  Nd7 {[%clk 0:02:26]} 11. Nc3 {[%clk 0:02:43]}  Nxc3 {[%clk 0:02:19]} 12. Bxc3 {[%clk 0:02:41]}  dxe5 {[%clk 0:01:58]} 13. dxe5 {[%clk 0:02:41]}  Nb6 {[%clk 0:01:51]} 14. Bd3 {[%clk 0:02:36]}  Nd5 {[%clk 0:01:46]} 15. Bd2 {[%clk 0:02:35]}  Nb4 {[%clk 0:01:32]} 16. Bb1 {[%clk 0:02:29]}  Bxf3 {[%clk 0:01:21]} 17. gxf3 {[%clk 0:02:21]}  Nd5 {[%clk 0:01:11]} 18. Rd1 {[%clk 0:02:09]}  Qb6 {[%clk 0:00:57]} 19. Be4 {[%clk 0:01:55]}  Rd8 {[%clk 0:00:56]} 20. b4 {[%clk 0:01:49]}  O-O {[%clk 0:00:50]} 21. Rab1 {[%clk 0:01:40]}  Qc7 {[%clk 0:00:31]} 22. Rdc1 {[%clk 0:01:34]}  Qb6 {[%clk 0:00:28]} 23. f4 {[%clk 0:01:32]}  g6 {[%clk 0:00:26]} 24. Kh1 {[%clk 0:01:23]}  Bh4 {[%clk 0:00:25]} 25. Kg2 {[%clk 0:01:11]}  Be7 {[%clk 0:00:18]} 26. a4 {[%clk 0:01:10]}  a6 {[%clk 0:00:18]} 27. a5 {[%clk 0:01:07]}  Qa7 {[%clk 0:00:18]} 28. b5 {[%clk 0:00:58]}  axb5 {[%clk 0:00:17]} 29. Rxb5 {[%clk 0:00:52]}  Rd7 {[%clk 0:00:17]} 30. f5 {[%clk 0:00:46]}  gxf5 {[%clk 0:00:15]} 31. Bxd5 {[%clk 0:00:43]}  Rxd5 {[%clk 0:00:14]} 32. Rxd5 {[%clk 0:00:42]}  exd5 {[%clk 0:00:14]} 33. Rc7 {[%clk 0:00:32]}  Re8 {[%clk 0:00:13]} 34. Qb5 {[%clk 0:00:29]}  Qa8 {[%clk 0:00:13]} 35. Qxb7 {[%clk 0:00:24]}  Qd8 {[%clk 0:00:12]} 36. Rd7 {[%clk 0:00:23]} 1-0


[Site "https://www.chess.com"]

[Event "Titled Tuesday Blitz April 19 Late 2022"]
[White "Zhao, Jun"]
[Black "Senthilkumar, Pranav"]
[WhiteFideId "8602522"]
[BlackFideId "2083477"]
[WhiteElo "2547"]
[BlackElo "2477"]
[Result "1-0"]
[Round "01"]
[TimeControl "180+1"]
[Date "2022.04.19"]
[WhiteClock "0:02:08"]
[BlackClock "0:02:08"]

1. d4 {[%clk 0:02:59]}  Nf6 {[%clk 0:02:58]} 2. c4 {[%clk 0:02:59]}  c5 {[%clk 0:02:58]} 3. d5 {[%clk 0:02:59]}  b6 {[%clk 0:02:59]} 4. Nc3 {[%clk 0:02:59]}  g6 {[%clk 0:02:58]} 5. e4 {[%clk 0:02:59]}  Bg7 {[%clk 0:02:59]} 6. e5 {[%clk 0:02:57]}  Ng8 {[%clk 0:03:00]} 7. Nf3 {[%clk 0:02:52]}  d6 {[%clk 0:02:59]} 8. Bf4 {[%clk 0:02:44]}  dxe5 {[%clk 0:02:58]} 9. Nxe5 {[%clk 0:02:40]}  Nf6 {[%clk 0:02:58]} 10. Be2 {[%clk 0:02:38]}  O-O {[%clk 0:02:57]} 11. O-O {[%clk 0:02:38]}  Bb7 {[%clk 0:02:54]} 12. Bf3 {[%clk 0:02:36]}  Ne8 {[%clk 0:02:53]} 13. Qe2 {[%clk 0:02:35]}  Nd6 {[%clk 0:02:53]} 14. g4 {[%clk 0:02:29]}  g5 {[%clk 0:02:41]} 15. Bg3 {[%clk 0:02:27]}  Na6 {[%clk 0:02:26]} 16. Rfe1 {[%clk 0:02:22]}  Nc7 {[%clk 0:02:19]} 17. Rad1 {[%clk 0:02:21]}  b5 {[%clk 0:02:15]} 18. cxb5 {[%clk 0:02:16]}  c4 {[%clk 0:02:09]} 19. a4 {[%clk 0:02:10]}  a6 {[%clk 0:02:08]} 20. b6 {[%clk 0:02:08]}  Nce8 {[%clk 0:02:08]} 21. a5 {[%clk 0:02:08]}  Rc8 {[%clk 0:02:08]} 22. Nc6 {[%clk 0:02:07]}  Bxc6 {[%clk 0:02:08]} 23. dxc6 {[%clk 0:02:08]} 1-0


[Site "https://www.chess.com"]

[Event "Titled Tuesday Blitz April 19 Late 2022"]
[White "Zong, Davis"]
[Black "Jaracz, Pawel"]
[WhiteFideId "30903955"]
[BlackFideId "1102222"]
[WhiteElo "2061"]
[BlackElo "2429"]
[Result "0-1"]
[Round "01"]
[TimeControl "180+1"]
[Date "2022.04.19"]
[WhiteClock "0:00:04"]
[BlackClock "0:01:51"]

1. d4 {[%clk 0:02:59]}  Nf6 {[%clk 0:02:59]} 2. c4 {[%clk 0:02:58]}  e6 {[%clk 0:02:59]} 3. g3 {[%clk 0:02:58]}  d5 {[%clk 0:02:56]} 4. Bg2 {[%clk 0:02:58]}  Bb4+ {[%clk 0:02:54]} 5. Nd2 {[%clk 0:02:56]}  O-O {[%clk 0:02:53]} 6. Nf3 {[%clk 0:02:56]}  dxc4 {[%clk 0:02:53]} 7. O-O {[%clk 0:02:52]}  b5 {[%clk 0:02:50]} 8. a4 {[%clk 0:02:48]}  c6 {[%clk 0:02:49]} 9. Ne5 {[%clk 0:02:28]}  Nd5 {[%clk 0:02:48]} 10. e3 {[%clk 0:01:42]}  Bb7 {[%clk 0:02:45]} 11. b3 {[%clk 0:01:37]}  c3 {[%clk 0:02:32]} 12. Ne4 {[%clk 0:01:34]}  Be7 {[%clk 0:02:25]} 13. Qc2 {[%clk 0:01:18]}  b4 {[%clk 0:02:24]} 14. Rd1 {[%clk 0:00:52]}  a5 {[%clk 0:02:14]} 15. Nd3 {[%clk 0:00:30]}  Nd7 {[%clk 0:02:14]} 16. f4 {[%clk 0:00:26]}  Qb6 {[%clk 0:02:10]} 17. Nef2 {[%clk 0:00:09]}  c5 {[%clk 0:02:06]} 18. e4 {[%clk 0:00:07]}  N5f6 {[%clk 0:02:06]} 19. dxc5 {[%clk 0:00:06]}  Nxc5 {[%clk 0:02:06]} 20. Be3 {[%clk 0:00:06]}  Qc7 {[%clk 0:02:03]} 21. Nxc5 {[%clk 0:00:06]}  Bxc5 {[%clk 0:02:03]} 22. Bxc5 {[%clk 0:00:06]}  Qxc5 {[%clk 0:02:03]} 23. e5 {[%clk 0:00:06]}  Nd5 {[%clk 0:01:58]} 24. Bxd5 {[%clk 0:00:04]}  Bxd5 {[%clk 0:01:57]} 25. Rd3 {[%clk 0:00:04]}  Be4 {[%clk 0:01:52]} 26. Rad1 {[%clk 0:00:03]}  Bxd3 {[%clk 0:01:52]} 27. Rxd3 {[%clk 0:00:04]}  Rad8 {[%clk 0:01:51]} 28. Rxd8 {[%clk 0:00:04]}  Rxd8 {[%clk 0:01:51]} 0-1


[Site "https://www.chess.com"]

[Event "Titled Tuesday Blitz April 19 Late 2022"]
[White "Aigner, Michael"]
[Black "Tologon tegin, Semetei"]
[WhiteFideId "2017288"]
[BlackFideId "13800574"]
[WhiteElo "2404"]
[BlackElo "2258"]
[Result "1-0"]
[Round "02"]
[TimeControl "180+1"]
[Date "2022.04.19"]
[WhiteClock "0:00:28"]
[BlackClock "0:00:16"]

1. e4 {[%clk 0:03:00]}  e5 {[%clk 0:02:59]} 2. Nf3 {[%clk 0:02:59]}  Nc6 {[%clk 0:03:00]} 3. d4 {[%clk 0:02:59]}  exd4 {[%clk 0:02:59]} 4. Nxd4 {[%clk 0:02:59]}  Bc5 {[%clk 0:02:59]} 5. Be3 {[%clk 0:02:59]}  Bb6 {[%clk 0:02:58]} 6. c3 {[%clk 0:02:48]}  Nf6 {[%clk 0:02:57]} 7. Nd2 {[%clk 0:02:47]}  O-O {[%clk 0:02:56]} 8. Be2 {[%clk 0:02:44]}  d5 {[%clk 0:02:56]} 9. Nxc6 {[%clk 0:02:38]}  bxc6 {[%clk 0:02:55]} 10. Bxb6 {[%clk 0:02:38]}  axb6 {[%clk 0:02:54]} 11. exd5 {[%clk 0:02:35]}  Nxd5 {[%clk 0:02:53]} 12. O-O {[%clk 0:02:34]}  Be6 {[%clk 0:02:47]} 13. a3 {[%clk 0:02:33]}  Qg5 {[%clk 0:02:43]} 14. Ne4 {[%clk 0:02:27]}  Qg6 {[%clk 0:02:43]} 15. Bf3 {[%clk 0:02:24]}  Rad8 {[%clk 0:02:42]} 16. Qc1 {[%clk 0:02:20]}  Rfe8 {[%clk 0:02:40]} 17. Qg5 {[%clk 0:02:19]}  Bf5 {[%clk 0:02:40]} 18. Qxg6 {[%clk 0:02:19]}  hxg6 {[%clk 0:02:39]} 19. Rfe1 {[%clk 0:02:15]}  Nf4 {[%clk 0:02:39]} 20. Ng3 {[%clk 0:02:11]}  c5 {[%clk 0:02:33]} 21. Nxf5 {[%clk 0:02:07]}  gxf5 {[%clk 0:02:34]} 22. Rxe8+ {[%clk 0:01:59]}  Rxe8 {[%clk 0:02:33]} 23. Rd1 {[%clk 0:02:00]}  Kf8 {[%clk 0:02:32]} 24. Kf1 {[%clk 0:01:59]}  Ke7 {[%clk 0:02:28]} 25. g3 {[%clk 0:01:57]}  Ne6 {[%clk 0:02:28]} 26. Bc6 {[%clk 0:01:53]}  Rd8 {[%clk 0:02:26]} 27. Rxd8 {[%clk 0:01:53]}  Kxd8 {[%clk 0:02:25]} 28. h4 {[%clk 0:01:52]}  Ke7 {[%clk 0:02:24]} 29. f4 {[%clk 0:01:48]}  g6 {[%clk 0:02:22]} 30. Ke2 {[%clk 0:01:47]}  Kd6 {[%clk 0:02:18]} 31. Bb5 {[%clk 0:01:45]}  Ng7 {[%clk 0:02:13]} 32. Kf3 {[%clk 0:01:37]}  Nh5 {[%clk 0:02:12]} 33. Be8 {[%clk 0:01:36]}  Ke7 {[%clk 0:02:11]} 34. Bb5 {[%clk 0:01:35]}  Nf6 {[%clk 0:02:12]} 35. Bd3 {[%clk 0:01:33]}  c6 {[%clk 0:02:05]} 36. Bc2 {[%clk 0:01:29]}  c4 {[%clk 0:02:04]} 37. Ke3 {[%clk 0:01:23]}  Kd6 {[%clk 0:01:59]} 38. Bb1 {[%clk 0:01:23]}  Kc5 {[%clk 0:01:56]} 39. Kf3 {[%clk 0:01:21]}  Kd5 {[%clk 0:01:52]} 40. Ke3 {[%clk 0:01:21]}  b5 {[%clk 0:01:43]} 41. Kf3 {[%clk 0:01:20]}  c5 {[%clk 0:01:43]} 42. Ke3 {[%clk 0:01:21]}  Kc6 {[%clk 0:01:40]} 43. Kf3 {[%clk 0:01:18]}  Kb6 {[%clk 0:01:40]} 44. Ke3 {[%clk 0:01:18]}  Ka5 {[%clk 0:01:39]} 45. Bc2 {[%clk 0:01:18]}  b4 {[%clk 0:01:39]} 46. cxb4+ {[%clk 0:01:13]}  cxb4 {[%clk 0:01:39]} 47. Kd4 {[%clk 0:01:14]}  Nh5 {[%clk 0:01:25]} 48. Kxc4 {[%clk 0:01:04]}  bxa3 {[%clk 0:01:25]} 49. bxa3 {[%clk 0:01:04]}  Nxg3 {[%clk 0:01:24]} 50. Kd4 {[%clk 0:01:00]}  Nh5 {[%clk 0:01:13]} 51. Ke3 {[%clk 0:00:57]}  Nf6 {[%clk 0:01:01]} 52. Bb3 {[%clk 0:00:57]}  Ng4+ {[%clk 0:01:01]} 53. Kd4 {[%clk 0:00:54]}  Nh6 {[%clk 0:00:47]} 54. Ke5 {[%clk 0:00:51]}  Ng4+ {[%clk 0:00:47]} 55. Kd6 {[%clk 0:00:47]}  Nh2 {[%clk 0:00:43]} 56. Bxf7 {[%clk 0:00:46]}  Nf3 {[%clk 0:00:43]} 57. Bxg6 {[%clk 0:00:45]}  Nxh4 {[%clk 0:00:42]} 58. Be8 {[%clk 0:00:40]}  Kb6 {[%clk 0:00:29]} 59. Ke5 {[%clk 0:00:39]}  Kc5 {[%clk 0:00:25]} 60. Bd7 {[%clk 0:00:36]}  Kc4 {[%clk 0:00:21]} 61. Bxf5 {[%clk 0:00:34]}  Kb3 {[%clk 0:00:21]} 62. Be4 {[%clk 0:00:28]}  Kxa3 {[%clk 0:00:15]} 63. Kf6 {[%clk 0:00:29]}  Kb4 {[%clk 0:00:15]} 64. Kg5 {[%clk 0:00:28]}  Kc5 {[%clk 0:00:16]} 65. Kxh4 {[%clk 0:00:28]} 1-0


[Site "https://www.chess.com"]

[Event "Titled Tuesday Blitz April 19 Late 2022"]
[White "Aldokhin, Ivan"]
[Black "Foisor, Sabina-Francesca"]
[WhiteFideId "24115720"]
[BlackFideId "1212915"]
[WhiteElo "2231"]
[BlackElo "2243"]
[Result "1-0"]
[Round "02"]
[TimeControl "180+1"]
[Date "2022.04.19"]
[WhiteClock "0:00:06"]
[BlackClock "0:00:10"]

1. e4 {[%clk 0:03:00]}  c6 {[%clk 0:02:56]} 2. Nc3 {[%clk 0:03:00]}  g6 {[%clk 0:02:55]} 3. d4 {[%clk 0:03:01]}  d5 {[%clk 0:02:53]} 4. h3 {[%clk 0:02:59]}  Bg7 {[%clk 0:02:53]} 5. Nf3 {[%clk 0:02:58]}  dxe4 {[%clk 0:02:44]} 6. Nxe4 {[%clk 0:02:58]}  Nf6 {[%clk 0:02:43]} 7. Nxf6+ {[%clk 0:02:56]}  Bxf6 {[%clk 0:02:42]} 8. Bh6 {[%clk 0:02:44]}  Nd7 {[%clk 0:02:38]} 9. Be2 {[%clk 0:02:35]}  Nb6 {[%clk 0:02:36]} 10. O-O {[%clk 0:02:34]}  Be6 {[%clk 0:02:26]} 11. a4 {[%clk 0:02:30]}  Qd7 {[%clk 0:02:06]} 12. a5 {[%clk 0:02:09]}  Nd5 {[%clk 0:01:39]} 13. c4 {[%clk 0:02:08]}  Nc7 {[%clk 0:01:33]} 14. Qd2 {[%clk 0:01:56]}  O-O-O {[%clk 0:01:26]} 15. a6 {[%clk 0:01:39]}  b6 {[%clk 0:01:21]} 16. Rfd1 {[%clk 0:01:27]}  Rhg8 {[%clk 0:01:02]} 17. d5 {[%clk 0:00:55]}  cxd5 {[%clk 0:00:57]} 18. c5 {[%clk 0:00:55]}  bxc5 {[%clk 0:00:45]} 19. Rdc1 {[%clk 0:00:40]}  c4 {[%clk 0:00:44]} 20. Nd4 {[%clk 0:00:18]}  Qd6 {[%clk 0:00:27]} 21. Bf4 {[%clk 0:00:15]}  Be5 {[%clk 0:00:26]} 22. Bxe5 {[%clk 0:00:14]}  Qxe5 {[%clk 0:00:27]} 23. Nc6 {[%clk 0:00:14]}  Qd6 {[%clk 0:00:22]} 24. Nxd8 {[%clk 0:00:13]}  Kxd8 {[%clk 0:00:20]} 25. b3 {[%clk 0:00:13]}  Ke8 {[%clk 0:00:18]} 26. bxc4 {[%clk 0:00:13]}  dxc4 {[%clk 0:00:18]} 27. Qxd6 {[%clk 0:00:12]}  exd6 {[%clk 0:00:19]} 28. Bxc4 {[%clk 0:00:12]}  Kd7 {[%clk 0:00:19]} 29. Be2 {[%clk 0:00:09]}  Rb8 {[%clk 0:00:18]} 30. Rab1 {[%clk 0:00:06]}  Rxb1 {[%clk 0:00:17]} 31. Rxb1 {[%clk 0:00:07]}  Bd5 {[%clk 0:00:16]} 32. Rb7 {[%clk 0:00:05]}  Kc6 {[%clk 0:00:14]} 33. Rb8 {[%clk 0:00:03]}  f5 {[%clk 0:00:13]} 34. Rh8 {[%clk 0:00:02]}  h5 {[%clk 0:00:13]} 35. Rh6 {[%clk 0:00:02]}  Bf7 {[%clk 0:00:13]} 36. Rh7 {[%clk 0:00:02]}  Bd5 {[%clk 0:00:12]} 37. Rg7 {[%clk 0:00:03]}  Be4 {[%clk 0:00:12]} 38. Rxg6 {[%clk 0:00:03]}  Kc5 {[%clk 0:00:13]} 39. Rg5 {[%clk 0:00:03]}  d5 {[%clk 0:00:13]} 40. Rxh5 {[%clk 0:00:03]}  d4 {[%clk 0:00:14]} 41. g4 {[%clk 0:00:03]}  d3 {[%clk 0:00:13]} 42. Bd1 {[%clk 0:00:03]}  Nxa6 {[%clk 0:00:13]} 43. gxf5 {[%clk 0:00:03]}  Kd6 {[%clk 0:00:12]} 44. f6 {[%clk 0:00:02]}  Ke6 {[%clk 0:00:12]} 45. Ra5 {[%clk 0:00:03]}  Nc5 {[%clk 0:00:12]} 46. Rxa7 {[%clk 0:00:03]}  Kxf6 {[%clk 0:00:12]} 47. Ra5 {[%clk 0:00:04]}  Ne6 {[%clk 0:00:12]} 48. Kf1 {[%clk 0:00:04]}  Nf4 {[%clk 0:00:12]} 49. Ke1 {[%clk 0:00:04]}  Nxh3 {[%clk 0:00:12]} 50. f3 {[%clk 0:00:04]}  Bf5 {[%clk 0:00:11]} 51. Kd2 {[%clk 0:00:04]}  Nf2 {[%clk 0:00:11]} 52. Bb3 {[%clk 0:00:04]}  Nh3 {[%clk 0:00:11]} 53. Ke3 {[%clk 0:00:04]}  Ng5 {[%clk 0:00:08]} 54. Bc4 {[%clk 0:00:03]}  Kg6 {[%clk 0:00:08]} 55. f4 {[%clk 0:00:02]}  Nh3 {[%clk 0:00:07]} 56. Ra6+ {[%clk 0:00:03]}  Kh5 {[%clk 0:00:07]} 57. Ra5 {[%clk 0:00:03]}  Kg4 {[%clk 0:00:07]} 58. Ra4 {[%clk 0:00:03]}  Kg3 {[%clk 0:00:04]} 59. Bxd3 {[%clk 0:00:02]}  Bxd3 {[%clk 0:00:04]} 60. Kxd3 {[%clk 0:00:03]}  Nxf4+ {[%clk 0:00:04]} 61. Ke4 {[%clk 0:00:03]}  Ng2 {[%clk 0:00:04]} 62. Ra3+ {[%clk 0:00:04]}  Kf2 {[%clk 0:00:04]} 63. Ra2+ {[%clk 0:00:03]}  Kg3 {[%clk 0:00:04]} 64. Rb2 {[%clk 0:00:04]}  Kg4 {[%clk 0:00:03]} 65. Rxg2+ {[%clk 0:00:03]}  Kh3 {[%clk 0:00:04]} 66. Rd2 {[%clk 0:00:04]}  Kg3 {[%clk 0:00:05]} 67. Rd3+ {[%clk 0:00:04]}  Kg4 {[%clk 0:00:05]} 68. Rf3 {[%clk 0:00:04]}  Kh4 {[%clk 0:00:06]} 69. Kf4 {[%clk 0:00:04]}  Kh5 {[%clk 0:00:06]} 70. Rg3 {[%clk 0:00:04]}  Kh4 {[%clk 0:00:07]} 71. Rg1 {[%clk 0:00:05]}  Kh5 {[%clk 0:00:08]} 72. Rg2 {[%clk 0:00:04]}  Kh6 {[%clk 0:00:08]} 73. Kf5 {[%clk 0:00:05]}  Kh7 {[%clk 0:00:08]} 74. Kf6 {[%clk 0:00:05]}  Kh8 {[%clk 0:00:09]} 75. Kf7 {[%clk 0:00:06]}  Kh7 {[%clk 0:00:10]} 76. Rh2# {[%clk 0:00:06]} 1-0


[Site "https://www.chess.com"]

[Event "Titled Tuesday Blitz April 19 Late 2022"]
[White "Andreikin, Dmitry"]
[Black "Sztokbant, Bernardo Vainzoff"]
[WhiteFideId "4158814"]
[BlackFideId "2115956"]
[WhiteElo "2736"]
[BlackElo "2225"]
[Result "1-0"]
[Round "02"]
[TimeControl "180+1"]
[Date "2022.04.19"]
[WhiteClock "0:00:26"]
[BlackClock "0:00:02"]

1. e4 {[%clk 0:03:00]}  c6 {[%clk 0:02:36]} 2. Nf3 {[%clk 0:02:57]}  d5 {[%clk 0:02:37]} 3. exd5 {[%clk 0:02:58]}  cxd5 {[%clk 0:02:36]} 4. Ne5 {[%clk 0:02:58]}  Nc6 {[%clk 0:02:36]} 5. Bb5 {[%clk 0:02:57]}  Bd7 {[%clk 0:02:37]} 6. Nxd7 {[%clk 0:02:56]}  Qxd7 {[%clk 0:02:37]} 7. d4 {[%clk 0:02:54]}  a6 {[%clk 0:02:37]} 8. Ba4 {[%clk 0:02:53]}  e6 {[%clk 0:02:37]} 9. c3 {[%clk 0:02:53]}  Bd6 {[%clk 0:02:37]} 10. O-O {[%clk 0:02:53]}  Nge7 {[%clk 0:02:37]} 11. Nd2 {[%clk 0:02:52]}  O-O {[%clk 0:02:37]} 12. Nf3 {[%clk 0:02:51]}  Qc7 {[%clk 0:02:36]} 13. g3 {[%clk 0:02:50]}  Ng6 {[%clk 0:02:27]} 14. Re1 {[%clk 0:02:45]}  b5 {[%clk 0:02:25]} 15. Bc2 {[%clk 0:02:46]}  b4 {[%clk 0:02:25]} 16. h4 {[%clk 0:02:33]}  bxc3 {[%clk 0:02:16]} 17. bxc3 {[%clk 0:02:34]}  Bxg3 {[%clk 0:02:10]} 18. fxg3 {[%clk 0:02:34]}  Qxg3+ {[%clk 0:02:10]} 19. Kf1 {[%clk 0:02:33]}  Nxh4 {[%clk 0:01:50]} 20. Nxh4 {[%clk 0:02:33]}  Qxh4 {[%clk 0:01:51]} 21. Kg2 {[%clk 0:02:30]}  g6 {[%clk 0:01:45]} 22. Rh1 {[%clk 0:02:27]}  Qf6 {[%clk 0:01:41]} 23. Qg4 {[%clk 0:02:23]}  Rab8 {[%clk 0:01:29]} 24. Bg5 {[%clk 0:02:17]}  Qg7 {[%clk 0:01:25]} 25. Bh6 {[%clk 0:02:15]}  Qf6 {[%clk 0:01:23]} 26. Raf1 {[%clk 0:02:14]}  Qe7 {[%clk 0:01:23]} 27. Bxf8 {[%clk 0:02:11]}  Qxf8 {[%clk 0:01:23]} 28. Rf2 {[%clk 0:02:01]}  Rb2 {[%clk 0:01:16]} 29. Qh4 {[%clk 0:01:55]}  h5 {[%clk 0:01:06]} 30. Qg5 {[%clk 0:01:52]}  Qg7 {[%clk 0:01:04]} 31. Ba4 {[%clk 0:01:46]}  Rxf2+ {[%clk 0:01:03]} 32. Kxf2 {[%clk 0:01:47]}  Nxd4 {[%clk 0:01:00]} 33. Bd1 {[%clk 0:01:11]}  Nf5 {[%clk 0:00:56]} 34. Rh3 {[%clk 0:01:11]}  f6 {[%clk 0:00:44]} 35. Qf4 {[%clk 0:01:07]}  Qa7+ {[%clk 0:00:44]} 36. Kf1 {[%clk 0:01:06]}  Qb6 {[%clk 0:00:36]} 37. Bc2 {[%clk 0:01:04]}  Qb5+ {[%clk 0:00:34]} 38. Bd3 {[%clk 0:01:03]}  Qc5 {[%clk 0:00:28]} 39. Bxf5 {[%clk 0:01:02]}  exf5 {[%clk 0:00:29]} 40. Qb4 {[%clk 0:00:59]}  Qa7 {[%clk 0:00:15]} 41. Qd6 {[%clk 0:00:57]}  Qb7 {[%clk 0:00:11]} 42. Re3 {[%clk 0:00:51]}  Qb1+ {[%clk 0:00:10]} 43. Kf2 {[%clk 0:00:51]}  Qxa2+ {[%clk 0:00:05]} 44. Re2 {[%clk 0:00:51]}  Qc4 {[%clk 0:00:06]} 45. Rd2 {[%clk 0:00:27]}  Qh4+ {[%clk 0:00:05]} 46. Ke2 {[%clk 0:00:27]}  Qh2+ {[%clk 0:00:02]} 47. Qxh2 {[%clk 0:00:26]} 1-0


[Site "https://www.chess.com"]

[Event "Titled Tuesday Blitz April 19 Late 2022"]
[White "Ansh M Shah"]
[Black "Koziorowicz, Michal"]
[WhiteFideId "25033379"]
[BlackFideId "21809194"]
[WhiteElo "1819"]
[BlackElo "2235"]
[Result "1-0"]
[Round "02"]
[TimeControl "180+1"]
[Date "2022.04.19"]
[WhiteClock "0:00:49"]
[BlackClock "0:01:05"]

1. d4 {[%clk 0:03:00]}  f5 {[%clk 0:02:57]} 2. c4 {[%clk 0:03:00]}  Nf6 {[%clk 0:02:57]} 3. Nf3 {[%clk 0:03:01]}  e6 {[%clk 0:02:56]} 4. g3 {[%clk 0:03:02]}  Be7 {[%clk 0:02:56]} 5. Bg2 {[%clk 0:03:03]}  O-O {[%clk 0:02:57]} 6. O-O {[%clk 0:03:04]}  d6 {[%clk 0:02:57]} 7. Nbd2 {[%clk 0:03:04]}  Nc6 {[%clk 0:02:54]} 8. b3 {[%clk 0:03:04]}  e5 {[%clk 0:02:54]} 9. dxe5 {[%clk 0:02:54]}  dxe5 {[%clk 0:02:55]} 10. e4 {[%clk 0:02:55]}  f4 {[%clk 0:02:50]} 11. Bb2 {[%clk 0:02:54]}  Bg4 {[%clk 0:02:48]} 12. Qc2 {[%clk 0:02:51]}  fxg3 {[%clk 0:02:37]} 13. hxg3 {[%clk 0:02:48]}  Nd4 {[%clk 0:02:36]} 14. Nxd4 {[%clk 0:02:44]}  exd4 {[%clk 0:02:37]} 15. c5 {[%clk 0:02:38]}  Be2 {[%clk 0:02:30]} 16. Rfe1 {[%clk 0:02:35]}  d3 {[%clk 0:02:30]} 17. Qc4+ {[%clk 0:02:34]}  Kh8 {[%clk 0:02:29]} 18. Bf3 {[%clk 0:01:50]}  Bxf3 {[%clk 0:02:19]} 19. Nxf3 {[%clk 0:01:51]}  Ng4 {[%clk 0:02:19]} 20. Kg2 {[%clk 0:01:51]}  Bf6 {[%clk 0:02:08]} 21. e5 {[%clk 0:01:45]}  d2 {[%clk 0:02:07]} 22. Rh1 {[%clk 0:01:44]}  Bxe5 {[%clk 0:01:35]} 23. Bxe5 {[%clk 0:01:33]}  Rxf3 {[%clk 0:01:19]} 24. Bxg7+ {[%clk 0:01:04]}  Kxg7 {[%clk 0:01:20]} 25. Qxg4+ {[%clk 0:01:05]}  Kh8 {[%clk 0:01:17]} 26. Qxf3 {[%clk 0:01:05]}  Qd4 {[%clk 0:01:12]} 27. Rad1 {[%clk 0:01:01]}  Re8 {[%clk 0:01:08]} 28. Qf5 {[%clk 0:00:52]}  Re7 {[%clk 0:01:05]} 29. Qf8# {[%clk 0:00:49]} 1-0


[Site "https://www.chess.com"]